bitfinex/quotes_ETHUSD_20240709
["timestamp","ask_amount","ask_price","bid_price","bid_amount"]
[1720533965453,2.81788866,3064.7,3063.2,3.26446]
[1720533965667,2.03821851,3064.6,3063.4,3.26432]
[1720533965871,1.13087566,3064.5,3063.4,3.26432]
[1720533966103,1.13087566,3064.6,3063.4,3.26427]
[1720533966272,1.13087566,3064.5,3063.7,3.26399]
[1720533966472,1.13070686,3064.4,3063.5,3.26414]
[1720533966667,1.13070686,3064.3,3062.7,7.37]
[1720533966869,4.55570686,3064.4,3062.9,3.26485]
[1720533967094,8.46282259,3064.3,3062.7,10.63499]
[1720533967300,7.81072259,3064.2,3062.5,3.26524]
[1720533967592,3.425,3064.0,3062.6,3.26519]
[1720533967829,5.46282259,3063.9,3062.2,3.26556]
[1720533968029,3.425,3063.7,3061.7,7.37]
[1720533968181,3.425,3063.5,3061.7,3.26606]
[1720533968521,3.0,3063.6,3061.1,3.26672]
[1720533968522,3.425,3063.1,3061.1,3.26672]
[1720533968824,3.425,3062.7,3061.1,0.653354]
[1720533968991,1.13132575,3062.6,3061.1,0.653354]
[1720533969323,2.4818,3062.8,3061.2,3.26668]
[1720533969615,2.4818,3062.8,3060.7,0.06531395]
[1720533969616,2.4818,3062.8,3061.7,3.26614]
[1720533970004,2.4818,3062.8,3061.8,3.0]
[1720533970329,2.4818,3062.8,3061.8,3.26598]
[1720533970631,5.2888,3063.4,3062.1,3.26572]
[1720533970827,0.55888,3063.3,3062.1,3.26572]
[1720533971504,0.55888,3063.3,3062.2,0.0653078]
[1720533971720,5.2888,3063.4,3062.1,3.26572]
[1720533971721,2.2888,3063.4,3062.7,3.26501]
[1720533971925,2.3106,3064.9,3063.1,3.26464]
[1720533972134,3.425,3064.7,3063.1,3.26464]
[1720533972342,3.425,3064.5,3063.1,3.26464]
[1720533972620,0.54636269,3064.6,3063.2,3.32976159]
[1720533972827,2.3106,3064.9,3063.7,3.264]
[1720533973040,2.3106,3064.9,3063.7,6.52794]
[1720533973191,2.3106,3064.9,3064.1,3.26357]
[1720533973386,0.34166012,3065.3,3064.5,3.26316]
[1720533973587,2.4098,3065.5,3064.5,3.26316]
[1720533973802,2.65078,3065.5,3064.7,3.26295]
[1720533973998,2.75141521,3066.1,3064.7,3.26295]
[1720533974241,1.13042171,3066.0,3064.7,3.26295]
[1720533974533,2.75141521,3066.1,3064.9,3.26274]
[1720533974689,2.4098,3066.1,3064.9,3.26274]
[1720533974888,0.24098,3066.0,3065.1,3.26253]
[1720533975090,0.24098,3066.0,3064.9,3.26266]
[1720533975291,0.24098,3066.0,3064.8,3.0]
[1720533975505,0.24098,3066.0,3064.9,3.26274]
[1720533975705,0.24098,3066.0,3064.0,3.26363]
[1720533975706,0.24098,3066.0,3064.3,3.26337]
[1720533975932,3.425,3065.8,3064.1,3.26355]
[1720533976137,3.425,3065.6,3063.8,3.26384]
[1720533976289,3.425,3065.4,3063.9,3.26379]
[1720533976636,1.13044237,3065.3,3063.5,3.26423]
[1720533976926,2.4944,3065.7,3065.0,3.26254]
[1720533977238,0.34161277,3066.5,3065.1,3.26253]
[1720533977239,2.4579,3066.4,3065.1,3.26253]
[1720533977415,1.41031213,3066.3,3065.1,3.2625]
[1720533977627,1.13042284,3066.2,3065.1,3.2625]
[1720533977839,0.27995128,3066.3,3064.8,6.26281]
[1720533978034,3.425,3066.1,3064.8,6.26284]
[1720533978240,0.27995128,3066.3,3064.8,3.0]
[1720533978446,2.4579,3066.4,3064.3,0.06525216]
[1720533978447,2.4579,3066.4,3065.3,3.26231]
[1720533979011,2.4579,3066.4,3065.5,3.2621]
[1720533979262,1.5,3068.3,3065.8,3.26172]
[1720533979263,2.251,3067.0,3065.8,3.26172]
[1720533979548,2.251,3067.0,3065.6,3.32715382]
[1720533979754,0.2251,3066.9,3065.6,3.9861262]
[1720533980042,0.2251,3066.9,3065.7,3.26187]
[1720533980252,0.2251,3066.9,3065.7,6.26187]
[1720533980413,0.2251,3066.9,3065.9,3.26161]
[1720533980615,0.2251,3066.9,3065.9,0.652348]
[1720533980817,0.2251,3066.9,3065.3,5.3822]
[1720533980818,0.2251,3066.9,3065.3,3.0]
[1720533981017,5.46460237,3066.8,3065.3,3.26224]
[1720533981254,2.03960237,3066.7,3065.4,6.2622]
[1720533981477,0.2251,3066.9,3065.4,3.06523828]
[1720533981759,0.24761,3066.8,3065.6,3.26199]
[1720533982113,0.24761,3066.8,3064.9,0.3]
[1720533982314,0.90935649,3066.7,3065.2,3.26241]
[1720533982556,3.24761,3066.8,3065.3,3.0]
[1720533982787,0.90935695,3066.7,3065.4,3.2622]
[1720533982945,0.4156967,3066.6,3065.5,3.2621]
[1720533983377,3.0,3066.9,3065.8,3.26172]
[1720533983578,5.676,3067.0,3065.6,3.26199]
[1720533983897,3.90918406,3066.9,3065.6,3.26199]
[1720533984047,3.0,3066.9,3065.6,3.26199]
[1720533984586,3.0,3066.9,3065.4,4.214631]
[1720533984876,3.425,3066.7,3065.5,3.0]
[1720533985085,3.425,3066.7,3065.3,3.0]
[1720533985239,3.425,3066.5,3065.1,3.2625]
[1720533985443,3.425,3066.5,3065.2,3.0]
[1720533985797,0.8676,3066.8,3065.3,0.06524316]
[1720533985956,0.8676,3066.8,3065.6,3.26199]
[1720533986281,0.8676,3066.8,3065.7,0.06523223]
[1720533986495,2.251,3067.0,3065.8,3.26176]
[1720533986992,2.251,3067.0,3065.7,3.26189]
[1720533987288,2.251,3067.0,3065.8,3.26178]
[1720533987461,2.251,3067.0,3065.5,3.2621]
[1720533987660,2.251,3067.0,3065.7,3.26189]
[1720533987865,2.251,3067.0,3065.8,3.0]
[1720533988172,2.251,3067.0,3065.9,3.26161]
[1720533988488,2.251,3067.0,3064.9,7.37]
[1720533988685,3.425,3066.7,3064.6,3.26298]
[1720533989013,2.4226,3066.4,3064.9,3.26265]
[1720533989204,2.4226,3066.4,3064.8,3.26283]
[1720533989490,2.4226,3066.4,3064.6,3.589278]
[1720533989691,2.4226,3066.4,3064.8,3.26279]
[1720533989869,2.4226,3066.4,3064.8,3.26277]
[1720533990066,0.24226,3066.3,3064.9,6.588957]
[1720533990306,2.4226,3066.4,3065.3,3.26222]
[1720533990468,2.4226,3066.4,3065.3,6.52445]
[1720533990669,2.4226,3066.4,3065.1,3.26249]
[1720533990905,2.4226,3066.4,3064.9,3.326277]
[1720533990906,2.4226,3066.4,3065.0,3.26263]
[1720533991090,2.4226,3066.4,3065.1,3.0]
[1720533991407,0.24226,3066.3,3065.1,6.26252]
[1720533991773,2.4226,3066.4,3065.3,3.26223]
[1720533992083,2.4226,3066.4,3065.4,3.32743627]
[1720533992394,2.4226,3066.4,3065.4,0.06523627]
[1720533992600,2.4226,3066.4,3065.3,3.26223]
[1720533992829,2.4226,3066.4,3065.1,3.0]
[1720533993009,0.24226,3066.3,3064.9,3.588937]
[1720533993350,0.24226,3066.3,3065.2,3.26242]
[1720533993535,2.4226,3066.4,3065.5,3.2621]
[1720533993707,2.3631,3067.0,3065.8,3.26175]
[1720533994239,2.3631,3067.0,3065.6,3.26199]
[1720533994415,2.3631,3067.0,3065.7,3.26188]
[1720533994616,2.3631,3067.0,3065.4,3.26216]
[1720533994823,0.53631,3066.9,3065.6,3.2619]
[1720533995140,2.3631,3067.0,3066.0,3.26155]
[1720533995619,2.3631,3067.0,3065.8,3.2617]
[1720533995620,2.3631,3067.0,3065.9,3.26167]
[1720533995826,2.3631,3067.0,3066.0,3.26157]
[1720533996218,2.3631,3067.0,3066.1,0.06522388]
[1720533996626,2.3631,3067.0,3066.1,3.32667388]
[1720533996799,2.3631,3067.0,3066.2,3.3265709]
[1720533997000,2.2568,3067.7,3066.3,0.06521845]
[1720533997200,2.2568,3067.7,3066.4,3.26104]
[1720533997948,2.2568,3067.7,3066.4,6.52212]
[1720533998122,0.22568,3067.6,3066.4,7.5460688]
[1720533998324,0.22568,3067.6,3066.5,3.26104]
[1720533998729,0.22568,3067.6,3066.6,3.26092]
[1720533999053,2.2568,3067.7,3066.7,0.06521183]
[1720533999258,2.2568,3067.7,3066.6,6.52179]
[1720533999458,2.2568,3067.7,3066.7,0.06520517]
[1720533999756,2.2568,3067.7,3066.7,3.26078]
[1720534000116,2.2568,3067.7,3066.7,3.26075]
[1720534000317,2.3999,3068.3,3067.0,3.26047]
[1720534000624,2.3999,3068.3,3066.8,0.39128019]
[1720534000625,2.3999,3068.3,3067.1,3.32559235]
[1720534000863,0.34137506,3068.4,3067.5,3.25998]
[1720534001153,2.2714,3069.0,3067.1,5.67781]
[1720534001373,0.34132645,3068.6,3067.1,3.26031]
[1720534001525,2.3022,3068.4,3066.8,3.326075]
[1720534001863,1.47263311,3068.3,3066.8,3.0]
[1720534002052,1.12946646,3068.2,3066.7,3.0]
[1720534002248,1.12946646,3068.2,3066.9,3.26059]
[1720534002249,4.12946646,3068.2,3066.9,3.26059]
[1720534002451,1.12946646,3068.1,3066.5,3.26099]
[1720534002650,1.12946646,3068.1,3066.4,0.95873385]
[1720534002825,1.12946646,3068.2,3066.5,3.261]
[1720534003027,0.78976331,3068.1,3066.5,4.00909439]
[1720534003263,1.12946646,3068.0,3066.5,0.74809439]
[1720534003450,1.12946646,3068.0,3066.4,4.21978385]
[1720534003645,1.12946646,3068.0,3066.4,0.95873385]
[1720534003847,4.55446646,3068.0,3066.1,0.65881639]
[1720534004062,4.67946646,3067.9,3066.1,3.92022639]
[1720534004252,1.12989641,3067.8,3066.2,3.26135]
[1720534004571,2.3547,3067.6,3065.9,3.26162]
[1720534004762,4.55489641,3067.5,3065.4,3.26213]
[1720534005064,4.55489641,3067.5,3064.9,10.63272]
[1720534005065,2.3478,3067.0,3064.9,10.63272]
[1720534005361,5.10489641,3066.9,3064.6,3.26297]
[1720534005565,5.10489641,3066.9,3064.4,2.3346]
[1720534005566,2.365,3066.6,3064.8,3.26278]
[1720534005762,2.365,3066.6,3064.4,2.3346]
[1720534005763,1.67989641,3066.5,3064.6,3.26302]
[1720534005964,1.12989641,3066.4,3064.8,3.2628]
[1720534006264,0.16798964,3066.3,3064.8,3.915382]
[1720534006454,1.12989641,3066.2,3064.8,3.915382]
[1720534006657,1.12989641,3066.2,3065.0,3.26263]
[1720534006857,1.12989641,3066.2,3065.3,3.26231]
[1720534007168,1.12989641,3066.1,3065.3,3.26231]
[1720534007366,1.12989641,3066.4,3065.3,3.914773]
[1720534007554,1.13029686,3066.3,3064.9,3.0]
[1720534007757,1.13032363,3066.2,3064.8,0.652582]
[1720534007946,1.13032363,3066.1,3065.0,3.26264]
[1720534008150,3.0,3066.5,3065.0,3.26264]
[1720534008151,1.13038426,3066.0,3065.0,3.26264]
[1720534008367,3.0,3066.5,3064.8,3.915352]
[1720534008566,1.6668384,3066.4,3064.9,3.0]
[1720534008875,1.1303384,3066.3,3064.9,3.0]
[1720534009047,1.1303384,3066.2,3064.9,3.0]
[1720534009248,1.1303384,3066.4,3064.9,3.0]
[1720534009566,1.1303384,3066.4,3064.3,7.37]
[1720534009567,3.425,3066.0,3064.3,7.37]
[1720534009868,1.1303384,3065.9,3064.3,7.37]
[1720534010072,1.1303384,3066.0,3064.8,3.26285]
[1720534010281,2.4678,3066.1,3064.9,0.06524735]
[1720534010282,1.1303384,3065.9,3064.9,0.06524735]
[1720534010586,2.4678,3066.1,3065.2,3.26235]
[1720534011270,2.4678,3066.1,3065.2,3.92136294]
[1720534012570,1.73547,3067.5,3065.7,3.26183]
[1720534012571,2.2764,3066.8,3065.7,3.26183]
[1720534012779,2.59987,3067.5,3065.8,3.26169]
[1720534012936,1.12998081,3067.4,3065.3,3.0]
[1720534013136,1.12998081,3067.3,3065.6,3.26199]
[1720534013368,1.12998081,3067.2,3065.7,3.0]
[1720534013557,1.12998081,3067.1,3065.2,3.26242]
[1720534013764,1.12998081,3067.1,3065.5,3.26208]
[1720534013976,1.12998081,3067.2,3065.5,3.32727223]
[1720534014145,1.12998081,3067.2,3065.7,3.26179]
[1720534014552,4.12998081,3067.2,3065.5,3.26203]
[1720534014866,1.79100889,3067.1,3065.6,0.326203]
[1720534015062,0.66102808,3067.1,3065.5,3.26208]
[1720534015247,1.13022481,3067.0,3065.6,3.26199]
[1720534015450,1.13022481,3066.9,3065.7,3.26188]
[1720534015762,1.13022481,3066.8,3065.8,3.32701817]
[1720534015942,1.13022481,3066.7,3065.9,0.33270182]
[1720534016138,2.4803,3067.3,3066.0,3.32678817]
[1720534016357,1.12998989,3067.2,3066.5,3.26103]
[1720534016570,1.12998989,3067.2,3066.0,2.47442817]
[1720534016571,1.12989636,3067.1,3066.3,3.26119]
[1720534016777,0.34136781,3067.6,3066.2,3.26128]
[1720534016941,2.03867466,3067.5,3066.3,0.326128]
[1720534017138,1.1299187,3067.4,3066.3,0.326128]
[1720534017340,1.1299187,3067.3,3066.3,0.326128]
[1720534017552,1.1299187,3067.2,3066.3,0.326128]
[1720534017747,1.12991152,3067.1,3066.0,3.26154]
[1720534017968,1.12994481,3067.0,3065.9,0.33270182]
[1720534018167,1.12994481,3066.9,3065.9,6.59429182]
[1720534018367,1.12994481,3067.5,3066.0,3.26153]
[1720534018590,0.34136781,3067.6,3066.0,3.26153]
[1720534018893,1.12995827,3067.5,3066.1,0.65942318]
[1720534019121,1.12994386,3067.4,3066.1,0.65942318]
[1720534019392,1.12994386,3067.3,3066.1,0.65942318]
[1720534019687,0.34136781,3067.6,3065.9,3.33270182]
[1720534019688,3.61004386,3067.2,3065.9,3.33270182]
[1720534019891,3.61004386,3067.2,3065.1,10.6325]
[1720534019892,1.12994386,3067.1,3065.1,10.63246]
[1720534020054,4.12994386,3067.1,3065.2,0.0652352]
[1720534020252,1.12994386,3067.0,3065.7,3.2618]
[1720534020453,0.41299439,3066.9,3065.7,0.652385]
[1720534020689,1.12994386,3066.8,3065.2,3.26234]
[1720534020993,1.12994386,3066.8,3064.9,2.2875]
[1720534020994,1.12994386,3066.8,3066.0,3.26155]
[1720534021287,2.4801,3067.2,3066.0,3.26155]
[1720534021288,2.4801,3067.2,3066.1,3.26146]
[1720534021479,1.12994127,3067.1,3066.1,3.26146]
[1720534021787,1.12992328,3067.0,3066.1,3.913761]
[1720534021991,2.4801,3067.2,3066.2,3.26136]
[1720534022191,1.12988981,3067.1,3066.2,3.26136]
[1720534022495,3.0,3067.5,3066.2,3.26136]
[1720534022658,1.1298592,3067.4,3066.4,3.26113]
[1720534022860,1.1298592,3067.3,3066.6,3.26092]
[1720534023192,2.3952,3068.4,3067.1,6.52065]
[1720534023407,1.12954081,3068.3,3066.7,0.55]
[1720534023583,1.12954081,3068.3,3066.3,3.0]
[1720534023584,1.12954081,3068.2,3066.5,6.81101]
[1720534023887,1.12954081,3068.2,3066.9,6.52108]
[1720534024089,1.12954081,3068.2,3066.6,3.26084]
[1720534024291,1.12954081,3068.2,3066.7,3.0]
[1720534024590,1.12954081,3068.2,3066.5,3.0]
[1720534024896,1.12954081,3068.2,3066.7,3.26081]
[1720534025189,1.12970939,3068.1,3066.8,3.0]
[1720534025391,1.12970939,3068.0,3066.8,3.0]
[1720534025556,1.12970939,3067.9,3066.8,3.0]
[1720534025757,1.12970939,3068.2,3066.1,3.26142]
[1720534025954,5.7241,3068.0,3065.9,3.2616]
[1720534026215,2.2991,3067.8,3065.8,3.26178]
[1720534026491,5.7241,3067.4,3065.2,3.26238]
[1720534026670,3.425,3067.2,3065.3,3.26223]
[1720534026855,4.67970939,3067.1,3065.3,6.52447]
[1720534027094,1.94018033,3067.0,3065.3,7.176927]
[1720534027294,1.94018033,3067.0,3065.3,3.914677]
[1720534027295,1.12970939,3066.9,3065.3,3.914677]
[1720534027492,1.12970939,3066.9,3065.3,3.26223]
[1720534027794,1.12970939,3066.9,3065.1,3.26246]
[1720534027964,2.298,3066.8,3064.8,3.26276]
[1720534028294,1.12970939,3066.7,3064.8,3.26276]
[1720534028508,3.0,3066.7,3065.2,3.26242]
[1720534028680,1.96002753,3066.6,3065.3,0.326242]
[1720534029006,3.8298,3066.6,3064.8,3.26276]
[1720534029209,3.425,3066.3,3064.6,7.37]
[1720534029413,1.13037869,3066.2,3064.6,7.37]
[1720534029692,4.13037869,3066.2,3064.6,7.37]
[1720534029855,1.54341656,3066.1,3064.6,7.37]
[1720534030058,3.52497869,3066.0,3064.6,7.37]
[1720534030260,4.13037869,3065.9,3064.0,7.37]
[1720534030566,1.13037869,3065.8,3064.4,3.26326]
[1720534030792,1.13037869,3065.8,3064.5,0.06525629]
[1720534030974,0.41303787,3065.7,3064.5,0.06525629]
[1720534031173,3.0,3065.9,3064.6,3.26298]
[1720534031468,7.41,3067.0,3065.4,3.26217]
[1720534031469,2.3771,3066.5,3065.4,3.26217]
[1720534031782,1.13032821,3066.4,3065.0,3.26257]
[1720534031984,1.13032821,3066.3,3064.9,3.2627]
[1720534032170,5.8021,3066.5,3064.8,7.37]
[1720534032501,4.08482974,3066.4,3064.8,7.37]
[1720534032798,1.13041974,3066.3,3064.9,3.26268]
[1720534032956,4.13041974,3066.3,3064.8,7.37]
[1720534033162,1.13041974,3066.2,3064.8,7.37]
[1720534033694,2.26,3066.1,3064.3,6.26328]
[1720534033861,1.81196171,3066.0,3064.4,7.952933]
[1720534034202,1.13041974,3065.9,3064.4,7.952933]
[1720534034399,1.13041974,3065.9,3064.6,3.26299]
[1720534034605,1.13041974,3065.9,3064.7,0.06525025]
[1720534034807,2.26,3066.1,3065.0,3.26257]
[1720534035007,1.13036783,3066.0,3065.2,3.26232]
[1720534035178,2.4067,3066.6,3065.3,3.06523735]
[1720534035382,1.13019476,3066.5,3065.9,3.2616]
[1720534035570,2.4067,3067.1,3065.7,3.2618]
[1720534035769,1.13010631,3067.0,3065.7,3.2618]
[1720534035970,1.13010631,3066.9,3065.8,0.32618]
[1720534036264,1.13010631,3066.8,3065.8,0.32618]
[1720534036470,1.13010631,3067.0,3065.4,3.0]
[1720534037482,3.425,3066.9,3064.8,10.6328]
[1720534037667,2.2622,3066.4,3064.5,3.26314]
[1720534037876,1.69882631,3066.3,3064.9,6.52538]
[1720534038071,1.13010631,3066.2,3065.3,3.26231]
[1720534038275,1.13010631,3066.3,3064.9,3.26269]
[1720534038511,1.13010631,3066.3,3064.9,3.26268]
[1720534038710,1.13010631,3066.3,3065.0,3.26263]
[1720534039012,1.13010631,3066.3,3065.2,3.26242]
[1720534039172,1.13010631,3066.3,3065.1,3.915031]
[1720534039374,2.2622,3066.4,3065.3,3.32752886]
[1720534039713,2.294,3067.0,3066.0,3.26154]
[1720534039915,1.13005113,3066.9,3066.3,3.26116]
[1720534040078,3.425,3068.2,3066.4,0.326116]
[1720534040426,0.34137491,3067.9,3066.3,3.26116]
[1720534040586,1.12984301,3067.8,3066.4,3.26112]
[1720534040920,1.12984301,3067.8,3066.5,3.32623324]
[1720534042083,1.12984301,3067.8,3066.5,0.06521324]
[1720534042284,2.4113,3067.7,3066.0,3.0]
[1720534042484,1.12984301,3067.6,3066.1,3.5614]
[1720534042797,1.12984301,3067.6,3066.2,3.0]
[1720534043147,1.12987888,3067.5,3066.1,3.5614]
[1720534043340,7.55488281,3067.6,3065.9,3.0]
[1720534043544,1.67988281,3067.5,3065.4,3.26217]
[1720534043843,5.7262,3067.3,3065.4,3.2622]
[1720534044046,5.6967,3067.1,3065.1,0.652531]
[1720534044245,5.6967,3066.9,3064.8,3.26279]
[1720534044545,3.425,3066.7,3064.8,3.26279]
[1720534044842,1.12988281,3066.6,3064.9,3.26272]
[1720534045209,4.12988281,3066.6,3064.9,3.26272]
[1720534045529,1.12988281,3066.5,3064.9,3.26272]
[1720534045729,0.41298828,3066.4,3065.0,0.326272]
[1720534045933,1.12988281,3066.3,3065.0,0.326272]
[1720534046451,1.12988281,3066.3,3065.1,3.32771512]
[1720534046609,1.13035289,3066.2,3065.2,6.26242]
[1720534046809,3.0,3066.8,3065.3,0.06523844]
[1720534047044,1.13028225,3066.7,3065.3,0.06523844]
[1720534047231,1.13028225,3066.6,3065.3,0.06523844]
[1720534047435,1.13028225,3066.7,3065.3,0.06523844]
[1720534047609,1.13028225,3066.7,3065.3,3.32754844]
[1720534047812,0.41302823,3066.6,3065.4,0.73191892]
[1720534048145,1.13028225,3066.5,3065.6,3.26193]
[1720534048331,3.0,3066.8,3065.6,3.26193]
[1720534048511,1.13014319,3066.7,3065.8,3.26178]
[1720534048704,1.13010745,3066.6,3065.4,3.99407892]
[1720534048904,2.2717,3066.9,3065.5,6.26208]
[1720534049144,1.35733233,3066.8,3065.6,3.0]
[1720534049377,1.13016233,3066.7,3065.6,3.0]
[1720534049544,1.13016233,3066.7,3065.6,6.26199]
[1720534049849,2.2717,3066.9,3065.6,6.26199]
[1720534050150,1.13006099,3066.8,3065.6,6.26199]
[1720534050329,2.2717,3066.9,3065.7,0.69613899]
[1720534050534,1.13007452,3066.8,3065.7,0.69613899]
[1720534050739,1.13009608,3066.7,3065.7,0.69613899]
[1720534050943,2.2717,3066.9,3065.8,3.26176]
[1720534051250,1.13003103,3066.8,3065.8,3.26176]
[1720534051450,2.2717,3066.9,3065.9,0.3957899]
[1720534051749,1.13000713,3066.8,3065.9,0.3957899]
[1720534052050,1.13000713,3066.7,3065.8,3.26177]
[1720534052237,1.13000713,3066.8,3066.0,3.26153]
[1720534052420,2.4793,3067.5,3066.1,3.26146]
[1720534052615,1.12992182,3067.4,3066.4,3.26114]
[1720534052833,2.4793,3067.5,3066.5,0.326114]
[1720534053052,2.4793,3067.5,3066.3,3.26119]
[1720534053053,1.12982039,3067.4,3066.3,3.26119]
[1720534053266,1.12982039,3067.4,3066.5,3.26104]
[1720534053568,2.77117491,3067.9,3066.6,3.26092]
[1720534053732,2.77117491,3067.9,3066.6,6.26092]
[1720534053937,1.12973372,3067.8,3066.6,6.32613122]
[1720534054262,2.77117491,3067.9,3066.7,3.26075]
[1720534054263,1.12973372,3067.7,3066.7,3.26075]
[1720534054562,1.12973372,3067.6,3066.8,3.32589822]
[1720534054874,1.12974589,3067.5,3066.8,3.0]
[1720534055047,1.12974589,3067.4,3066.8,6.32591727]
[1720534055242,2.69522658,3068.3,3066.8,6.32591727]
[1720534055447,2.69522658,3068.3,3066.9,3.26053]
[1720534055448,1.39923927,3068.2,3066.9,3.26053]
[1720534055648,1.12971661,3068.1,3067.0,3.26046]
[1720534055955,7.41,3069.3,3067.2,3.26029]
[1720534056158,1.7528,3069.5,3067.2,3.26029]
[1720534056159,3.49799518,3069.2,3067.4,3.26008]
[1720534056468,3.49799518,3069.2,3066.1,11.36]
[1720534056469,3.441,3068.5,3066.1,11.36]
[1720534056680,5.15144518,3068.4,3066.7,3.26081]
[1720534056969,1.12949518,3068.3,3066.7,3.26081]
[1720534057170,1.12949518,3068.3,3067.2,3.2602]
[1720534057373,0.58095,3068.4,3067.3,6.26015]
[1720534057676,1.12952212,3068.3,3067.3,6.26015]
[1720534057969,2.64405503,3069.2,3067.4,3.26008]
[1720534058133,1.12942039,3069.1,3067.6,3.25981]
[1720534058334,1.12942039,3069.0,3067.7,3.25973]
[1720534058588,1.12942039,3068.9,3067.7,3.25973]
[1720534058754,1.12942039,3068.8,3067.3,3.0]
[1720534058954,1.12942039,3068.7,3067.3,3.626022]
[1720534059153,1.12942039,3069.0,3067.4,3.0]
[1720534059338,1.12942039,3069.0,3067.3,3.886212]
[1720534059668,1.12942039,3069.0,3067.4,3.0]
[1720534059849,4.12942039,3069.0,3067.5,3.25995]
[1720534060033,1.84236243,3068.9,3067.6,3.0]
[1720534060236,1.12937467,3068.8,3067.6,3.0]
[1720534060437,1.12937467,3068.7,3067.2,3.0]
[1720534060674,1.12937467,3068.6,3067.2,3.0]
[1720534060976,0.71294204,3068.9,3067.2,6.26026]
[1720534061153,1.12953191,3068.8,3067.2,3.626026]
[1720534061482,1.12950412,3068.7,3067.0,3.0]
[1720534061633,1.12950412,3068.7,3066.9,2.4634]
[1720534061634,3.58450412,3068.6,3067.1,3.26039]
[1720534061834,1.12950412,3068.5,3067.2,6.2603]
[1720534062063,2.455,3068.6,3067.4,3.26002]
[1720534062238,3.0,3068.8,3067.4,3.26002]
[1720534062440,0.3712942,3068.7,3067.5,0.326002]
[1720534062877,1.12945561,3068.6,3067.2,3.0]
[1720534063035,1.12945561,3068.5,3066.9,3.0]
[1720534063239,5.896,3068.8,3066.6,10.63085]
[1720534063550,8.12045561,3068.7,3066.9,3.26056]
[1720534063747,4.57045561,3068.6,3066.6,7.37]
[1720534063947,3.441,3068.4,3066.6,10.63086]
[1720534064153,4.12945561,3068.3,3066.8,3.26066]
[1720534064376,1.12945561,3068.2,3066.8,6.52129]
[1720534064548,4.36204556,3068.5,3066.9,3.26059]
[1720534064736,1.12959629,3068.4,3067.0,3.26048]
[1720534064964,1.67868833,3068.3,3067.0,3.26048]
[1720534065173,0.54916419,3068.3,3067.3,3.26019]
[1720534065574,3.0,3068.7,3066.7,3.85720215]
[1720534065757,2.455,3068.8,3066.6,10.37]
[1720534065758,1.12946117,3068.6,3066.8,6.2607]
[1720534066071,1.12946117,3068.5,3066.8,3.0]
[1720534066284,2.4646,3068.3,3066.2,3.792]
[1720534066440,3.441,3068.0,3065.9,3.26165]
[1720534066645,4.12946117,3067.9,3066.1,3.26144]
[1720534066839,1.12946117,3067.8,3066.3,3.26124]
[1720534067041,1.12946117,3067.9,3066.4,0.06521636]
[1720534067246,1.1297182,3067.8,3066.5,6.5219]
[1720534067480,3.0,3068.0,3066.6,0.65219]
[1720534067649,1.12973263,3067.9,3066.6,0.65219]
[1720534067850,5.4646,3068.1,3066.6,3.91312]
[1720534068182,5.4646,3068.1,3066.7,3.26081]
[1720534068500,1.12972656,3068.0,3066.8,3.26072]
[1720534068799,3.0,3068.0,3066.9,0.652153]
[1720534068970,1.12967215,3067.9,3066.9,3.26058]
[1720534069169,2.4646,3068.1,3066.6,0.65219]
[1720534069403,1.12964937,3068.0,3066.6,3.26093]
[1720534069698,1.12964937,3067.9,3066.7,3.0]
[1720534069858,1.12964937,3068.0,3066.7,3.0]
[1720534070054,1.12964937,3068.0,3066.7,6.2608]
[1720534070298,2.4646,3068.1,3066.8,3.26066]
[1720534070455,2.770116,3068.1,3066.9,0.952146]
[1720534070776,1.12965031,3068.0,3066.7,3.0]
[1720534070986,1.12965031,3067.9,3066.6,3.0]
[1720534071288,1.12965031,3067.8,3066.1,10.6314]
[1720534071471,4.12965031,3067.9,3066.1,3.26138]
[1720534071674,0.75706503,3067.8,3066.1,3.26138]
[1720534071874,1.12984435,3067.7,3065.8,3.26174]
[1720534072087,0.75706503,3067.8,3065.8,3.26174]
[1720534072088,1.12984435,3067.6,3065.8,3.26174]
[1720534072401,7.46832112,3067.5,3065.4,5.55223]
[1720534072603,7.57092112,3067.4,3065.4,5.55223]
[1720534072904,2.72692903,3067.3,3065.6,6.52392]
[1720534073059,4.13009692,3067.2,3065.6,6.52392]
[1720534073286,1.13009692,3067.1,3065.6,6.52392]
[1720534073482,3.0,3067.2,3065.8,3.26175]
[1720534073796,1.04683211,3067.3,3066.0,3.26157]
[1720534074126,0.40468321,3067.2,3066.0,3.26152]
[1720534074432,1.1299215,3067.1,3066.0,6.52303]
[1720534074622,1.1299215,3067.1,3065.8,3.26178]
[1720534075121,1.1299215,3067.1,3065.9,3.26161]
[1720534075324,0.40468321,3067.2,3065.9,3.26161]
[1720534075493,0.40468321,3067.2,3066.1,3.26145]
[1720534075705,0.40468321,3067.2,3065.9,0.326161]
[1720534075909,1.1299662,3067.1,3065.8,3.0]
[1720534076102,0.40468321,3067.2,3065.8,3.0]
[1720534076103,1.1299662,3067.0,3065.8,3.0]
[1720534076335,2.3966,3066.9,3065.4,7.37]
[1720534076632,1.1299662,3066.8,3064.8,3.441]
[1720534076817,1.1299662,3066.8,3065.4,3.26211]
[1720534076818,4.1299662,3066.8,3065.4,3.26211]
[1720534077020,1.78262282,3066.7,3065.5,3.26209]
[1720534077340,1.1299662,3066.6,3065.4,3.2622]
[1720534077494,1.1299662,3066.6,3065.3,6.52448]
[1720534077694,1.1299662,3066.6,3065.4,3.0]
[1720534077991,1.1299662,3066.6,3065.1,3.26246]
[1720534078242,0.17826228,3066.5,3065.1,3.26246]
[1720534078530,1.1299662,3066.4,3065.1,3.26246]
[1720534079218,1.13023242,3066.3,3065.2,3.26241]
[1720534079548,1.13023242,3066.2,3064.8,6.26283]